bitfinex-derivatives/quotes_BTCF0:USTF0_20250127
["timestamp","ask_amount","ask_price","bid_price","bid_amount"]
[1737963722081,0.0436911,99020.0,98993.0,0.3608]
[1737963722382,0.00151509,99069.0,99024.0,0.202119]
[1737963722692,0.00151509,99069.0,99066.0,0.3608]
[1737963722886,0.00151509,99069.0,99037.0,0.3608]
[1737963723187,0.00151509,99069.0,99046.0,0.3608]
[1737963723584,0.33170874,99060.0,99046.0,0.3608]
[1737963724082,0.00451509,99069.0,99043.0,0.00015141]
[1737963724382,0.69250874,99060.0,99043.0,0.00015141]
[1737963724589,0.202057,99055.0,99043.0,0.00015141]
[1737963725178,0.202085,99041.0,99020.0,0.3608]
[1737963725488,0.3608,99028.0,99010.0,0.3608]
[1737963725786,0.33170874,99030.0,99010.0,0.3608]
[1737963725787,0.3608,99025.0,99010.0,0.3608]
[1737963726085,0.56294,99014.0,99011.0,0.01551061]
[1737963726286,0.202141,99013.0,99012.0,0.01550877]
[1737963726477,0.202141,99013.0,99011.0,0.07119687]
[1737963726782,0.0001503,99027.0,99011.0,0.07119687]
[1737963726977,0.202115,99026.0,99011.0,0.07119687]
[1737963727173,0.0001503,99027.0,99011.0,0.07119687]
[1737963727373,0.3608,99021.0,99011.0,0.07119687]
[1737963727577,0.004,99013.0,99011.0,0.07119687]
[1737963728779,0.206143,99013.0,99011.0,0.07119687]
[1737963728980,0.3608,99022.0,99008.0,0.00015141]
[1737963728981,0.202145,99011.0,99008.0,0.00015141]
[1737963729388,0.562945,99011.0,99008.0,0.00015141]
[1737963729584,0.3608,99011.0,99008.0,0.00015141]
[1737963729781,0.562946,99011.0,99008.0,0.00015141]
[1737963730181,1.6913,99012.0,99009.0,0.3608]
[1737963730381,0.185,99033.0,99009.0,0.3608]
[1737963730583,0.202121,99023.0,99009.0,0.3608]
[1737963730876,0.202131,99018.0,99009.0,0.3608]
[1737963731084,0.202147,99010.0,99008.0,0.00615141]
[1737963731593,0.202124,99021.0,99008.0,0.00615141]
[1737963731884,0.3608,99027.0,99008.0,0.00615141]
[1737963731885,0.202145,99011.0,99009.0,0.001]
[1737963732091,0.202134,99017.0,99009.0,0.001]
[1737963732287,0.3608,99010.0,99008.0,0.00015141]
[1737963732490,0.202157,99005.0,98995.0,0.23854438]
[1737963732694,0.202154,99007.0,98995.0,0.23854438]
[1737963733187,0.3608,99021.0,99000.0,0.3608]
[1737963733395,0.20212,99024.0,99010.0,0.3608]
[1737963733589,0.3608,99033.0,99020.0,0.3608]
[1737963733897,0.00015149,99027.0,99020.0,0.3608]
[1737963734079,0.00015149,99027.0,99021.0,0.02522427]
[1737963734283,0.00015149,99027.0,99022.0,0.02522427]
[1737963734598,0.202116,99025.0,99023.0,0.02522427]
[1737963734888,0.00015149,99027.0,99024.0,0.02522427]
[1737963735081,0.00015149,99027.0,99019.0,0.3608]
[1737963735284,0.00215149,99027.0,99019.0,0.3608]
[1737963735987,0.3608,99025.0,99010.0,0.36887]
[1737963736686,0.00015149,99027.0,99010.0,0.36887]
[1737963736901,0.00215149,99027.0,99020.0,0.001]
[1737963737287,0.00215149,99027.0,99010.0,0.36887]
[1737963737487,0.001,99025.0,99010.0,0.571015]
[1737963737691,0.03712614,99032.0,99010.0,0.571015]
[1737963737889,0.03712614,99032.0,99010.0,0.36887]
[1737963738190,0.03712614,99032.0,99010.0,0.36987]
[1737963738191,0.004,99027.0,99010.0,0.36987]
[1737963738391,0.004,99027.0,99011.0,0.0157271]
[1737963738592,0.004,99027.0,99012.0,0.0157271]
[1737963738792,0.004,99027.0,99013.0,0.0157271]
[1737963739091,0.004,99027.0,99011.0,0.00807]
[1737963739092,0.3608,99023.0,99011.0,0.00807]
[1737963739293,0.004,99027.0,99014.0,0.3608]
[1737963739294,1.5,99026.0,99014.0,0.3608]
[1737963739594,1.5,99026.0,99015.0,0.0157286]
[1737963739802,0.001,99025.0,99024.0,0.3608]
[1737963739987,0.001,99025.0,99024.0,0.0157286]
[1737963740395,0.6608,99025.0,99011.0,0.00807]
[1737963740694,0.003,99026.0,99021.0,0.3608]
[1737963741092,0.003,99025.0,99021.0,0.3608]
[1737963741295,0.003,99025.0,99022.0,0.202121]
[1737963741698,0.002,99025.0,99022.0,0.202121]
[1737963742094,0.002,99025.0,99024.0,0.202117]
[1737963742996,0.002,99025.0,99021.0,0.3608]
[1737963743189,0.01762058,99036.0,99021.0,0.3608]
[1737963743391,0.003,99025.0,99021.0,0.3608]
[1737963743595,0.003,99025.0,99022.0,0.202121]
[1737963743999,0.1828,99045.0,99022.0,0.202121]
[1737963744305,0.003,99025.0,99023.0,0.202117]
[1737963744501,0.003,99025.0,99024.0,0.3608]
[1737963744799,0.003,99025.0,99021.0,0.3608]
[1737963745699,0.205102,99025.0,99021.0,0.3608]
[1737963745900,0.003,99025.0,99021.0,0.3608]
[1737963746296,0.004,99025.0,99021.0,0.3608]
[1737963746992,0.00451557,99034.0,99022.0,0.001]
[1737963747394,0.202087,99033.0,99022.0,0.001]
[1737963747598,0.00151557,99034.0,99021.0,0.3648]
[1737963747793,0.00151557,99034.0,99033.0,0.3608]
[1737963748093,0.00151557,99034.0,99032.0,0.3608]
[1737963748290,0.00251557,99034.0,99032.0,0.3608]
[1737963748501,0.202027,99063.0,99040.0,0.202072]
[1737963748694,0.1914,99066.0,99053.0,0.3608]
[1737963749196,0.202044,99055.0,99053.0,0.3608]
[1737963749501,0.202051,99051.0,99050.0,0.00015149]
[1737963750192,1.5,99065.0,99051.0,0.20205]
[1737963750392,0.20199,99081.0,99059.0,0.562833]
[1737963750598,0.1914,99086.0,99067.0,0.3608]
[1737963750804,0.01786964,99081.0,99067.0,0.3608]
[1737963751000,0.202025,99064.0,99053.0,0.001]
[1737963751199,0.202028,99063.0,99050.0,0.36195149]
[1737963751389,1.6914,99086.0,99050.0,0.36195149]
[1737963751390,1.5,99086.0,99059.0,0.3608]
[1737963751595,1.5,99086.0,99068.0,0.3608]
[1737963751794,0.201993,99080.0,99068.0,0.3608]
[1737963752401,1.5,99086.0,99068.0,0.3608]
[1737963752596,0.201983,99085.0,99068.0,0.3608]
[1737963752808,0.001,99071.0,99068.0,0.3608]
[1737963753493,1.5,99086.0,99068.0,0.3608]
[1737963753694,0.201998,99077.0,99068.0,0.001]
[1737963753900,1.5,99086.0,99068.0,0.001]
[1737963753901,0.202001,99076.0,99068.0,0.001]
[1737963754211,0.3608,99075.0,99068.0,0.001]
[1737963754414,0.202015,99069.0,99068.0,0.001]
[1737963755108,1.702015,99069.0,99068.0,0.001]
[1737963755600,1.702015,99069.0,99051.0,0.86880382]
[1737963755601,1.5,99069.0,99051.0,0.86880382]
[1737963755802,0.3608,99056.0,99025.0,0.56812239]
[1737963756000,0.202102,99026.0,99025.0,0.56676239]
[1737963756399,0.3608,99043.0,99026.0,0.202101]
[1737963756705,0.00151536,99046.0,99025.0,0.56676239]
[1737963756706,1.5,99045.0,99044.0,0.202066]
[1737963756909,0.00151536,99046.0,99044.0,0.562866]
[1737963757304,0.00015142,99054.0,99053.0,0.202047]
[1737963757608,0.00015142,99054.0,99053.0,0.562847]
[1737963757999,0.53368074,99090.0,99053.0,0.3608]
[1737963758200,0.53368074,99090.0,99044.0,0.3608]
[1737963758201,0.53368074,99090.0,99073.0,0.3608]
[1737963758609,0.3608,99088.0,99073.0,0.3608]
[1737963758797,0.201996,99079.0,99073.0,0.3608]
[1737963759004,1.5,99079.0,99057.0,0.3608]
[1737963759208,0.33170874,99070.0,99065.0,0.00015142]
[1737963759802,0.202019,99067.0,99065.0,0.00015142]
[1737963760006,0.3608,99066.0,99065.0,0.00015142]
[1737963760208,0.202019,99067.0,99065.0,0.00015142]
[1737963760917,0.202019,99067.0,99041.0,0.36887]
[1737963760918,0.202026,99064.0,99041.0,0.36887]
[1737963761216,0.3638,99066.0,99041.0,0.38600846]
[1737963761417,0.202058,99048.0,99041.0,0.38600846]
[1737963761602,1.5,99047.0,99041.0,0.38600846]
[1737963761806,0.33170874,99051.0,99041.0,0.38600846]
[1737963762010,0.202059,99048.0,99046.0,0.2406824]
[1737963762323,0.20219342,99056.0,99046.0,0.2406824]
[1737963762816,0.00015142,99056.0,99046.0,0.2406824]
[1737963763619,0.00015142,99056.0,99049.0,0.3608]
[1737963763820,0.00015142,99056.0,99052.0,0.202047]
[1737963764118,0.00015142,99056.0,99049.0,0.3608]
[1737963764522,0.00015142,99056.0,99052.0,0.3608]
[1737963765019,0.3608,99075.0,99052.0,0.3628]
[1737963765215,0.3608,99075.0,99066.0,0.3608]
[1737963765420,0.202029,99062.0,99052.0,0.3628]
[1737963766220,0.3608,99075.0,99052.0,0.3628]
[1737963766420,0.202014,99069.0,99052.0,0.3628]
[1737963766722,0.202014,99069.0,99061.0,0.3608]
[1737963766917,0.202015,99069.0,99061.0,0.3608]
[1737963767718,0.202027,99063.0,99052.0,0.37804732]
[1737963767913,0.3332235,99076.0,99052.0,0.37804732]
[1737963768119,0.202017,99067.0,99061.0,0.001]
[1737963768516,0.00151476,99076.0,99061.0,0.001]
[1737963768817,0.00151476,99076.0,99068.0,0.3608]
[1737963769616,0.00151476,99076.0,99072.0,0.3608]
[1737963770026,0.00351476,99076.0,99074.0,0.202003]
[1737963770225,0.00351476,99076.0,99072.0,0.3608]
[1737963771019,0.00151476,99076.0,99072.0,0.3608]
[1737963771218,0.00351476,99076.0,99072.0,0.3608]
[1737963772220,0.00351476,99076.0,99072.0,0.36054233]
[1737963773619,0.1,99100.0,99072.0,0.36054233]
[1737963773820,0.1,99100.0,99093.0,0.3608]
[1737963774420,0.1,99100.0,99096.0,0.562757]
[1737963774721,0.101,99100.0,99096.0,0.3608]
[1737963775123,0.105,99100.0,99096.0,0.3608]
[1737963775425,0.01135953,99119.0,99096.0,0.3608]
[1737963775721,0.15050883,99127.0,99113.0,0.3608]
[1737963777018,0.03375583,99135.0,99133.0,0.201883]
[1737963777225,0.26767501,99164.0,99135.0,0.33170874]
[1737963777530,0.22175203,99156.0,99155.0,0.3608]
[1737963777722,0.22175203,99156.0,99155.0,0.562638]
[1737963777920,0.18073656,99164.0,99155.0,0.562638]
[1737963778220,0.18073656,99164.0,99163.0,0.3608]
[1737963778419,0.18019674,99164.0,99163.0,0.3608]
[1737963778621,0.18019674,99164.0,99163.0,0.562622]
[1737963778825,0.18019674,99164.0,99163.0,0.862622]
[1737963779231,0.21085932,99182.0,99170.0,0.201808]
[1737963779422,0.21085932,99182.0,99181.0,0.3608]
[1737963779629,0.21085932,99182.0,99181.0,0.7216]
[1737963780326,0.51085932,99182.0,99172.0,0.00015125]
[1737963780526,0.201837,99156.0,99130.0,0.3608]
[1737963780728,2.062637,99156.0,99155.0,1e-08]
[1737963780929,1.5,99156.0,99155.0,1e-08]
[1737963782322,1.5,99156.0,99154.0,0.00806]
[1737963782323,1.8,99156.0,99154.0,1e-08]
[1737963782530,0.201839,99155.0,99154.0,1e-08]
[1737963782724,0.3608,99163.0,99154.0,1e-08]
[1737963782930,0.0001507,99165.0,99154.0,1e-08]
[1737963783231,0.0001507,99165.0,99162.0,0.2406824]
[1737963783426,0.562623,99163.0,99162.0,0.2406824]
[1737963783923,0.3608,99163.0,99162.0,0.2406824]
[1737963784332,0.0001507,99165.0,99162.0,0.2406824]
[1737963784333,0.0001507,99165.0,99162.0,0.25606372]
[1737963784628,0.0001507,99165.0,99164.0,0.3608]
[1737963784818,0.0001507,99165.0,99164.0,0.01538132]
[1737963786138,0.33170874,99174.0,99164.0,0.37618132]
[1737963786436,0.53350874,99174.0,99173.0,0.3608]
[1737963787437,0.53350874,99174.0,99173.0,0.37610003]
[1737963788332,0.201829,99160.0,99159.0,0.0029]
[1737963788533,0.3608,99160.0,99152.0,0.3608]
[1737963788738,1.5,99159.0,99121.0,0.3608]
[1737963788924,0.3608,99140.0,99121.0,0.3608]
[1737963789130,0.3608,99140.0,99102.0,0.3608]
[1737963789131,0.201906,99122.0,99102.0,0.3608]
[1737963789331,0.33170874,99131.0,99120.0,0.14470361]
[1737963789528,0.01145427,99140.0,99130.0,0.3608]
[1737963789727,0.0015138,99150.0,99139.0,0.3608]
[1737963789728,0.201857,99147.0,99139.0,0.3608]
[1737963789937,0.0015138,99150.0,99142.0,0.3608]
[1737963790133,0.00015133,99145.0,99142.0,0.3608]
[1737963790335,0.00015133,99145.0,99143.0,0.201863]
[1737963790732,0.33170874,99170.0,99143.0,0.201863]
[1737963790926,0.33170874,99170.0,99158.0,0.3608]
[1737963791331,0.201815,99167.0,99166.0,0.3608]
[1737963791836,0.201801,99174.0,99166.0,0.3608]
[1737963792042,0.201805,99172.0,99166.0,0.3608]
[1737963792237,0.33170874,99190.0,99166.0,0.3608]
[1737963792440,0.33170874,99190.0,99160.0,0.01098679]
[1737963792441,0.33170874,99190.0,99175.0,0.3608]
[1737963792648,0.33170874,99190.0,99183.0,0.3608]
[1737963792847,0.201797,99176.0,99175.0,0.3608]
[1737963793535,0.19806757,99189.0,99175.0,0.3608]
[1737963793536,0.01096757,99189.0,99175.0,0.3608]
[1737963793841,0.33170874,99190.0,99175.0,0.3608]
[1737963794142,0.01130877,99190.0,99183.0,0.3608]
[1737963794347,0.00151347,99194.0,99183.0,0.3608]
[1737963794639,0.20178,99185.0,99183.0,0.3608]
[1737963795548,0.00151347,99194.0,99188.0,0.20177]
[1737963795729,0.00151347,99194.0,99193.0,0.3708]
[1737963796943,0.00151347,99194.0,99193.0,0.3618]
[1737963797136,0.30151347,99194.0,99193.0,0.001]
[1737963797341,0.30151347,99194.0,99183.0,0.3608]
[1737963797639,0.20178,99184.0,99183.0,0.2922594]
[1737963798050,0.201799,99175.0,99174.0,0.00015124]
[1737963798238,0.3608,99175.0,99150.0,0.01114768]
[1737963798439,0.201804,99173.0,99148.0,0.01]
[1737963798636,0.3608,99175.0,99139.0,0.36338]
[1737963798637,0.69250874,99160.0,99139.0,0.36338]
[1737963798946,0.201868,99141.0,99139.0,0.00258]
[1737963799646,0.00015114,99150.0,99139.0,0.00258]
[1737963799843,0.00015114,99150.0,99142.0,0.3608]
[1737963800051,0.201863,99144.0,99142.0,0.3608]
[1737963800946,0.00015114,99150.0,99142.0,0.3608]
[1737963801144,0.3608,99188.0,99149.0,0.3708]
[1737963801342,0.3608,99188.0,99142.0,0.3608]
[1737963801343,0.37220765,99188.0,99173.0,0.3608]
[1737963801842,0.201787,99181.0,99173.0,0.3608]
[1737963802246,0.37220765,99188.0,99173.0,0.3608]
[1737963802443,0.20179,99180.0,99178.0,0.3608]
[1737963802644,0.20179,99180.0,99167.0,0.00015124]
[1737963802645,0.201812,99168.0,99167.0,0.00015124]
[1737963803346,0.201804,99173.0,99167.0,0.00015124]
[1737963803645,0.201812,99169.0,99167.0,0.00015124]
[1737963804052,0.3,99169.0,99146.0,0.01090758]
[1737963804241,0.1858,99187.0,99164.0,0.3608]
[1737963804242,0.33170874,99170.0,99164.0,0.3608]
[1737963804446,0.201818,99165.0,99164.0,0.3608]
[1737963804853,0.20183,99160.0,99150.0,0.3608]
[1737963805148,0.3608,99162.0,99143.0,0.01]
[1737963805347,0.33170874,99153.0,99145.0,0.00015124]
[1737963805557,0.201858,99146.0,99145.0,0.00015124]
[1737963805757,0.201836,99157.0,99145.0,0.00015124]
[1737963805943,0.201816,99167.0,99156.0,0.3608]
[1737963806148,0.201794,99177.0,99169.0,0.01]
[1737963806350,0.11957078,99184.0,99174.0,0.3608]
[1737963806550,0.11957078,99184.0,99183.0,0.01]
[1737963806757,0.11957078,99184.0,99183.0,0.40611845]
[1737963806958,0.11957078,99184.0,99183.0,0.39611845]
[1737963807149,0.11957078,99184.0,99183.0,0.3608]
[1737963807358,0.01123985,99204.0,99183.0,0.3608]
[1737963807359,0.53343674,99210.0,99193.0,0.01]
[1737963807653,0.53343674,99210.0,99202.0,0.3608]
[1737963807654,0.201731,99208.0,99202.0,0.3608]
[1737963808051,0.201735,99206.0,99202.0,0.3608]
[1737963808257,0.33170874,99210.0,99202.0,0.7216]
[1737963808946,0.201696,99226.0,99206.0,0.01]
[1737963809145,1.5,99229.0,99221.0,0.3608]
[1737963809351,1.5,99229.0,99202.0,0.3608]
[1737963809651,0.001,99207.0,99202.0,0.3608]
[1737963809856,0.001,99207.0,99206.0,0.36095124]
[1737963810248,0.201732,99208.0,99206.0,0.00015124]
[1737963810656,0.33170874,99212.0,99206.0,0.00015124]
[1737963810955,1.5,99229.0,99206.0,0.00015124]
[1737963810956,0.001,99207.0,99206.0,0.01015124]
[1737963811159,0.001,99207.0,99206.0,0.37095124]
[1737963812044,0.001,99207.0,99206.0,0.00015124]
[1737963812854,1.5,99207.0,99206.0,0.00015124]
[1737963813062,1.5,99207.0,99206.0,0.00215124]
[1737963813354,0.201692,99227.0,99217.0,0.01]
[1737963813552,0.201692,99227.0,99226.0,0.3608]
[1737963813750,0.201708,99219.0,99217.0,0.01]
[1737963813962,0.201687,99229.0,99218.0,0.3608]
[1737963814255,0.201687,99229.0,99228.0,0.3608]
[1737963814757,1.701687,99229.0,99228.0,0.3608]
[1737963814962,0.201693,99226.0,99218.0,0.3608]
[1737963815145,0.201693,99226.0,99218.0,0.7216]
[1737963815346,1.5,99229.0,99218.0,0.7216]
[1737963815554,0.201701,99222.0,99218.0,0.3608]
[1737963815753,1.5,99229.0,99218.0,0.7216]
[1737963815957,0.201692,99227.0,99226.0,0.3608]
[1737963816153,0.33170874,99230.0,99226.0,0.3608]
[1737963817861,0.201666,99240.0,99226.0,0.3608]
[1737963818061,0.201666,99240.0,99239.0,0.3608]
[1737963818459,0.34436364,99250.0,99239.0,0.3608]
[1737963818960,0.54600864,99250.0,99239.0,0.3608]
[1737963819359,0.201649,99248.0,99239.0,0.3608]
[1737963819556,0.201649,99248.0,99247.0,0.3608]
[1737963819760,0.201649,99248.0,99247.0,0.37615267]
[1737963820762,0.201649,99248.0,99247.0,0.3618]
[1737963822054,0.501649,99248.0,99247.0,0.001]
[1737963822264,0.3608,99269.0,99247.0,0.3608]
[1737963822460,0.201648,99248.0,99238.0,0.3608]
[1737963822763,0.201648,99248.0,99236.0,0.3608]
[1737963822764,0.201661,99242.0,99236.0,0.3608]
[1737963822964,0.201665,99240.0,99236.0,0.3608]
[1737963823764,0.201669,99238.0,99236.0,0.3608]
[1737963824365,0.01112243,99248.0,99237.0,0.01]
[1737963824661,0.201653,99246.0,99244.0,0.3608]
[1737963825163,0.201687,99229.0,99219.0,0.3608]
[1737963825672,0.201687,99229.0,99228.0,0.36095117]
[1737963825858,0.3608,99254.0,99228.0,0.36095117]
[1737963825859,0.201667,99239.0,99228.0,0.66095117]
[1737963826059,0.201667,99239.0,99238.0,0.3608]
[1737963827367,0.201667,99239.0,99228.0,0.37210154]
[1737963827368,0.002,99229.0,99228.0,0.37210154]
[1737963827764,0.002,99229.0,99228.0,0.66095117]
[1737963827955,1.502,99239.0,99228.0,0.66095117]
[1737963828263,0.201674,99236.0,99228.0,0.36095117]
[1737963828470,1.502,99239.0,99231.0,0.3608]
[1737963828670,0.201681,99232.0,99231.0,0.3608]
[1737963829162,1.502,99239.0,99231.0,0.3608]
[1737963829359,0.002,99239.0,99231.0,0.3608]
[1737963829558,0.201663,99241.0,99238.0,0.3608]
[1737963829761,0.201667,99239.0,99238.0,0.3608]
[1737963829967,0.18642401,99250.0,99231.0,0.3608]
[1737963830161,0.201681,99232.0,99231.0,0.3608]
[1737963830365,1.702681,99232.0,99231.0,0.36343]
[1737963830570,1.702681,99232.0,99231.0,0.66443]
[1737963830773,0.0115143,99250.0,99231.0,0.67443]
[1737963830962,0.201673,99236.0,99231.0,0.37443]
[1737963831164,0.201679,99233.0,99231.0,0.36443]
[1737963831474,0.201679,99233.0,99231.0,0.36343]
[1737963832091,0.001,99239.0,99231.0,0.36343]
[1737963832092,0.001,99239.0,99232.0,0.01]
[1737963832572,0.201662,99242.0,99232.0,0.31]
[1737963832772,0.201662,99242.0,99241.0,0.3608]
[1737963834171,0.18642401,99260.0,99241.0,0.3618]
[1737963834368,0.18642401,99270.0,99249.0,0.3608]
[1737963834868,0.201644,99251.0,99249.0,0.3608]
[1737963835075,0.201644,99251.0,99249.0,0.36095117]
[1737963836678,0.201644,99251.0,99249.0,0.36195117]
[1737963837265,0.202644,99251.0,99249.0,0.36095117]
[1737963839671,0.202644,99251.0,99249.0,0.00015117]
[1737963839878,0.202644,99251.0,99236.0,0.3631]
[1737963840172,0.202644,99251.0,99231.0,0.01263]
[1737963840173,0.20168,99233.0,99231.0,0.00263]
[1737963840876,1.5,99232.0,99231.0,0.00263]
[1737963841377,1.5,99232.0,99231.0,0.08206585]
[1737963841574,1.5,99232.0,99231.0,0.04976103]
[1737963842175,1.5,99232.0,99231.0,0.4105663]
[1737963842379,0.201663,99241.0,99231.0,0.67643]
[1737963842569,0.201663,99241.0,99240.0,0.3608]
[1737963842772,0.201663,99241.0,99240.0,0.44023449]
[1737963843075,0.201663,99241.0,99231.0,0.003]
[1737963843076,0.6608,99241.0,99231.0,0.003]
[1737963843267,0.3608,99232.0,99205.0,0.48520533]
[1737963843466,0.201734,99206.0,99205.0,0.48520533]
[1737963843669,0.201738,99205.0,99200.0,0.3608]
[1737963843866,0.18642401,99215.0,99208.0,0.30034528]
[1737963844069,0.201728,99209.0,99208.0,0.30034528]
[1737963844679,0.201728,99209.0,99187.0,0.31689563]
[1737963844680,0.20177,99188.0,99187.0,0.31689563]
[1737963844866,0.201785,99181.0,99180.0,0.37210304]
[1737963845174,0.201785,99181.0,99180.0,0.17323773]
[1737963845370,0.3759,99196.0,99180.0,0.53403773]
[1737963845569,0.201783,99182.0,99180.0,0.53403773]
[1737963845981,0.00015117,99191.0,99180.0,0.53403773]
[1737963846375,0.00015117,99191.0,99171.0,0.55265852]
[1737963846680,0.18742401,99181.0,99171.0,0.55265852]
[1737963847073,1.5,99180.0,99171.0,0.55265852]
[1737963847369,0.001,99181.0,99178.0,0.3608]
[1737963847574,0.18742401,99181.0,99178.0,0.3608]
[1737963847769,0.001,99181.0,99180.0,0.01]
[1737963848077,0.00615117,99191.0,99180.0,0.01]
[1737963848268,0.00615117,99191.0,99190.0,0.572566]
[1737963848468,0.14334656,99195.0,99194.0,0.201758]
[1737963848672,0.14334656,99195.0,99194.0,0.3608]
[1737963849986,0.14334656,99195.0,99194.0,0.3708]
[1737963850289,0.1982398,99204.0,99194.0,0.3708]
[1737963850476,0.18642401,99204.0,99203.0,0.3608]
[1737963850782,0.201727,99210.0,99204.0,0.01]
[1737963850987,0.201727,99210.0,99209.0,0.3608]
[1737963851283,0.19796854,99213.0,99209.0,0.3608]
[1737963851587,0.19796854,99213.0,99209.0,0.36066198]
[1737963851777,0.201726,99210.0,99209.0,0.36066198]
[1737963852178,0.19796854,99213.0,99203.0,0.3420453]
[1737963852179,0.201738,99204.0,99203.0,0.3420453]
[1737963852883,0.38439255,99213.0,99189.0,0.3608]
[1737963853081,0.201766,99190.0,99189.0,0.3608]
[1737963854782,0.201766,99190.0,99189.0,0.3638]
[1737963854972,0.18642401,99210.0,99192.0,0.20176]
[1737963855175,0.38814801,99210.0,99209.0,0.3608]
[1737963855376,0.201724,99210.0,99209.0,0.3608]
[1737963856883,0.201723,99211.0,99189.0,0.3608]
[1737963857084,0.18017866,99213.0,99189.0,0.3608]
[1737963857085,0.201765,99190.0,99189.0,0.3608]
[1737963857783,1.701765,99190.0,99189.0,0.3608]
[1737963858790,1.71355223,99190.0,99189.0,0.3608]
[1737963859587,0.201765,99190.0,99189.0,0.6708]
[1737963859789,0.201765,99190.0,99189.0,0.6748]
[1737963860486,0.01177555,99196.0,99189.0,0.6728]
[1737963860792,0.14999539,99207.0,99189.0,0.3708]
[1737963860988,0.14999539,99207.0,99202.0,0.3608]
[1737963861191,0.201738,99203.0,99202.0,0.3608]
[1737963862593,0.14999539,99207.0,99204.0,0.01]
[1737963862781,0.201716,99215.0,99206.0,0.3608]
[1737963862982,0.201716,99215.0,99214.0,0.3608]
[1737963869790,0.00015109,99219.0,99218.0,0.01]
[1737963869991,0.18642401,99240.0,99218.0,0.3708]
[1737963869992,0.201703,99221.0,99218.0,0.3708]
[1737963870296,1.5,99234.0,99218.0,0.6708]
[1737963870491,1.701676,99234.0,99233.0,0.3608]
[1737963871398,0.201676,99234.0,99233.0,0.3608]
[1737963872699,1.701676,99234.0,99233.0,0.3618]
[1737963873987,1.701676,99234.0,99233.0,0.001]
[1737963874594,1.82208731,99234.0,99233.0,0.001]
[1737963878204,1.82208731,99234.0,99233.0,0.011]
[1737963878496,0.12041131,99234.0,99233.0,0.011]
[1737963878698,0.32208731,99234.0,99233.0,0.011]
[1737963878898,0.32208731,99234.0,99233.0,0.311]
[1737963880303,0.12041131,99234.0,99233.0,0.311]
[1737963881007,0.000151,99243.0,99233.0,0.311]
[1737963881304,0.000151,99243.0,99242.0,0.3608]
[1737963881695,0.000151,99243.0,99242.0,0.6608]
[1737963882407,0.36660267,99260.0,99247.0,0.01]
[1737963882608,0.36660267,99260.0,99247.0,0.3708]
[1737963882907,0.18017866,99260.0,99247.0,0.6708]
[1737963883208,0.18017866,99260.0,99259.0,0.01]
[1737963883407,0.18017866,99260.0,99259.0,0.3708]
[1737963883903,0.18017866,99260.0,99259.0,0.6708]
[1737963884795,0.201618,99263.0,99259.0,0.3708]
[1737963884999,0.201618,99263.0,99262.0,0.3608]
[1737963885805,1.701618,99263.0,99262.0,0.3608]
[1737963886402,0.201618,99263.0,99262.0,0.6608]
[1737963886707,0.201602,99271.0,99262.0,0.6608]
[1737963886903,0.201602,99271.0,99270.0,0.3608]
[1737963887704,1.701602,99271.0,99270.0,0.3608]
[1737963888201,1.71316109,99271.0,99270.0,0.3608]
[1737963889902,1.51155909,99271.0,99262.0,0.3608]
[1737963890212,1.51155909,99271.0,99212.0,0.29960849]
[1737963890213,0.201677,99234.0,99233.0,0.3608]
[1737963890611,0.3608,99234.0,99221.0,0.3608]
[1737963890816,0.3608,99234.0,99213.0,0.001512]
[1737963890817,0.201702,99222.0,99213.0,0.001512]
[1737963891515,0.201716,99214.0,99212.0,0.182073]
[1737963891814,0.201732,99206.0,99205.0,0.31998186]
[1737963892110,1.5,99206.0,99187.0,0.01]
[1737963892407,1.5,99206.0,99179.0,0.00151245]
[1737963892408,0.201769,99188.0,99186.0,0.33025952]
[1737963893015,0.20190217,99197.0,99196.0,0.01]
[1737963893308,0.18642401,99220.0,99213.0,0.01]
[1737963893309,0.201714,99215.0,99213.0,0.01]
[1737963893698,0.201714,99215.0,99213.0,0.10658514]
[1737963893911,0.201714,99215.0,99213.0,0.01]
[1737963894111,0.18642401,99220.0,99213.0,0.01]
[1737963894408,0.18642401,99220.0,99204.0,0.00015117]
[1737963894712,0.201733,99205.0,99204.0,0.00015117]
[1737963896012,0.21309557,99205.0,99204.0,0.00115117]
[1737963896712,0.21309557,99205.0,99204.0,0.00015117]
[1737963896906,0.21309557,99205.0,99204.0,0.00115117]
[1737963897308,0.21309557,99205.0,99204.0,0.01115117]
[1737963897708,0.21309557,99205.0,99204.0,0.10773631]
[1737963898410,0.21309557,99205.0,99204.0,0.46853631]
[1737963898611,0.201715,99214.0,99204.0,0.46753631]
[1737963898814,0.19760343,99220.0,99204.0,0.37195117]
[1737963899108,0.201733,99205.0,99204.0,0.00115117]
[1737963900211,0.18642401,99220.0,99204.0,0.09773631]
[1737963900414,0.201708,99218.0,99215.0,0.01]
[1737963900715,0.201717,99213.0,99212.0,0.3608]
[1737963900910,0.201717,99213.0,99204.0,0.00115117]
[1737963900911,0.201733,99205.0,99204.0,0.00115117]
[1737963901216,0.3608,99205.0,99187.0,0.0014]
[1737963901413,0.201784,99180.0,99178.0,0.01]
[1737963901613,0.201784,99180.0,99179.0,0.09809759]
[1737963902019,0.01095925,99205.0,99179.0,0.09809759]
[1737963902020,0.18642401,99200.0,99179.0,0.09809759]
[1737963902211,0.201765,99190.0,99188.0,0.01]
[1737963903217,0.201765,99190.0,99188.0,0.10658514]
[1737963903407,0.20189717,99199.0,99198.0,0.01]
[1737963903611,0.20189717,99199.0,99189.0,0.1948]
[1737963903612,0.01111153,99199.0,99189.0,0.1948]
[1737963903804,0.201763,99190.0,99189.0,0.1948]
[1737963904213,0.201763,99190.0,99189.0,0.29138514]
[1737963904721,0.201763,99190.0,99188.0,0.3758]